[Event "GER-ch Youth-U10 2022"]
[Site "Willingen"]
[Date "2022.06.05"]
[Round "2.22"]
[White "Fischermann, Simon"]
[Black "Schmidt, Jossip"]
[Result "1-0"]
[ECO "B01"]
[WhiteElo "1344"]
[BlackElo "1085"]
[Annotator "NA RC COMBH"]
[PlyCount "55"]
[EventDate "2022.06.05"]
[EventType "swiss"]
[EventRounds "11"]
[EventCountry "GER"]
[SourceTitle "playchess.com"]
[Source "ChessBase"]
[SourceQuality "1"]
[TimeControl "40/4500+30:900+30"]

1. e4 {[%emt 0:00:03]} d5 {[%emt 0:00:04]} 2. exd5 {[%emt 0:00:35]} Qxd5 {[%emt 0:00:10]} 3. Nc3 {[%emt 0:00:11]} Qa5 {[%emt 0:00:08]} 4. Bc4 {[%emt 0:00:22]} c6 {[%emt 0:00:23]} 5. d4 {[%emt 0:01:42]} Qc7 {[%emt 0:00:37]} 6. Nge2 {[%emt 0:00:59]} Nf6 {[%emt 0:00:16]} 7. Bf4 {[%emt 0:00:15]} Qd8 {[%emt 0:00:47]} 8. a4 {[%emt 0:00:48]} Bf5 {[%emt 0:00:20]} 9. Ng3 {[%emt 0:01:22]} Bg6 {[%emt 0:01:09]} 10. O-O {[%emt 0:01:25]} e6 {[%emt 0:00:19]} 11. Re1 {[%emt 0:04:40]} Bd6 {[%emt 0:00:32]} 12. Bxd6 {[%emt 0:09:30]} Qxd6 {[%emt 0:00:56]} 13. d5 {[%emt 0:02:26]} cxd5 {[%emt 0:01:23]} 14. Nxd5 {[%emt 0:02:41]} Nxd5 {[%emt 0:01:08]} 15. Bxd5 {[%emt 0:02:07]} Nc6 {[%emt 0:00:25]} 16. Be4 {[%emt 0:03:54]} Qxd1 {[%emt 0:01:04]} 17. Raxd1 {[%emt 0:00:59]} Bxe4 {[%emt 0:01:25]} 18. Nxe4 {[%emt 0:00:18]} O-O {[%emt 0:00:25]} 19. Rd7 {[%emt 0:01:54]} b6 {[%emt 0:05:15]} 20. f4 {[%emt 0:03:07]} e5 {[%emt 0:01:17]} 21. fxe5 {[%emt 0:01:25]} Nxe5 {[%emt 0:00:29]} 22. Rd5 {[%emt 0:03:49]} f6 {[%emt 0:03:08]} 23. b3 {[%emt 0:01:14]} Rfd8 {[%emt 0:00:33]} 24. Red1 {[%emt 0:00:26]} Rxd5 {[%emt 0:00:56]} 25. Rxd5 {[%emt 0:00:32]} Rc8 {[%emt 0:01:27]} 26. c4 {[%emt 0:00:25]} a6 {[%emt 0:00:45]} 27. h3 {[%emt 0:01:48]} Kf7 {[%emt 0:00:40]} 28. Nd6+ {[%emt 0:00:09]} 1-0

[Event "GER-ch Youth-U10 2022"]
[Site "Willingen"]
[Date "2022.06.05"]
[Round "2.23"]
[White "Mulgunov, Jefim Nikolaj"]
[Black "Hagn, Tobias"]
[Result "0-1"]
[ECO "C47"]
[WhiteElo "1055"]
[BlackElo "1337"]
[Annotator "NA RC COMBH"]
[PlyCount "56"]
[EventDate "2022.06.05"]
[EventType "swiss"]
[EventRounds "11"]
[EventCountry "GER"]
[SourceTitle "playchess.com"]
[Source "ChessBase"]
[SourceQuality "1"]
[TimeControl "40/4500+30:900+30"]

1. e4 {[%emt 0:00:05]} e5 {[%emt 0:00:04]} 2. Nf3 {[%emt 0:00:04]} Nc6 {[%emt 0:00:08]} 3. Nc3 {[%emt 0:00:04]} Nf6 {[%emt 0:00:08]} 4. d4 {[%emt 0:00:05]} exd4 {[%emt 0:00:11]} 5. Nxd4 {[%emt 0:00:09]} Bb4 {[%emt 0:00:12]} 6. Nxc6 {[%emt 0:00:18]} bxc6 {[%emt 0:00:12]} 7. Bd3 {[%emt 0:00:09]} d5 {[%emt 0:00:15]} 8. exd5 {[%emt 0:00:11]} cxd5 {[%emt 0:00:13]} 9. O-O {[%emt 0:00:16]} O-O {[%emt 0:00:21]} 10. Bg5 {[%emt 0:00:13]} c6 {[%emt 0:00:27]} 11. h3 {[%emt 0:01:13]} h6 {[%emt 0:00:22]} 12. Bh4 {[%emt 0:00:10]} Qd6 {[%emt 0:01:06]} 13. Ne2 {[%emt 0:00:20]} c5 {[%emt 0:01:21]} 14. c3 {[%emt 0:00:20]} Ba5 {[%emt 0:00:16]} 15. Bb1 {[%emt 0:00:19]} Bc7 {[%emt 0:00:48]} 16. Ng3 {[%emt 0:00:13]} Bb7 {[%emt 0:00:58]} 17. Bxf6 {[%emt 0:00:27]} Qxf6 {[%emt 0:00:18]} 18. Qc2 {[%emt 0:00:44]} g6 {[%emt 0:00:27]} 19. Qd2 {[%emt 0:01:31]} Bf4 {[%emt 0:00:41]} 20. Qd1 {[%emt 0:00:23]} Rad8 {[%emt 0:01:22]} 21. Qc2 {[%emt 0:03:03]} d4 {[%emt 0:01:19]} 22. Nh5 {[%emt 0:00:52]} Qg5 {[%emt 0:00:38]} 23. Nxf4 {[%emt 0:00:33]} Qxf4 {[%emt 0:00:27]} 24. Qd3 {[%emt 0:01:00]} dxc3 {[%emt 0:01:02]} 25. Qxc3 {[%emt 0:00:10]} Qg5 {[%emt 0:00:17]} 26. Qg3 {[%emt 0:00:25]} Qxg3 {[%emt 0:00:25]} 27. fxg3 {[%emt 0:00:15]} Rd2 {[%emt 0:00:07]} 28. a3 {[%emt 0:00:48]} Rxg2+ {[%emt 0:00:15]} 0-1

[Event "GER-ch Youth-U10 2022"]
[Site "Willingen"]
[Date "2022.06.05"]
[Round "2.24"]
[White "Hellriegel, Hannes"]
[Black "Wolf, Noah"]
[Result "0-1"]
[ECO "B34"]
[WhiteElo "1335"]
[BlackElo "1073"]
[Annotator "NA RC COMBH"]
[PlyCount "92"]
[EventDate "2022.06.05"]
[EventType "swiss"]
[EventRounds "11"]
[EventCountry "GER"]
[SourceTitle "playchess.com"]
[Source "ChessBase"]
[SourceQuality "1"]
[TimeControl "40/4500+30:900+30"]

1. e4 {[%emt 0:00:03]} c5 {[%emt 0:00:08]} 2. Nf3 {[%emt 0:00:15]} g6 {[%emt 0:00:10]} 3. d4 {[%emt 0:00:32]} cxd4 {[%emt 0:00:07]} 4. Nxd4 {[%emt 0:00:16]} Bg7 {[%emt 0:00:11]} 5. Be3 {[%emt 0:00:42]} Nc6 {[%emt 0:00:18]} 6. c3 {[%emt 0:00:39]} Nf6 {[%emt 0:00:41]} 7. Nd2 {[%emt 0:00:17]} O-O {[%emt 0:00:25]} 8. Bc4 {[%emt 0:00:24]} e6 {[%emt 0:00:49]} 9. a4 {[%emt 0:00:22]} d5 {[%emt 0:00:36]} 10. Nxc6 {[%emt 0:00:29]} bxc6 {[%emt 0:00:13]} 11. Bd3 {[%emt 0:00:37]} dxe4 {[%emt 0:00:26]} 12. Nxe4 {[%emt 0:00:29]} Qc7 {[%emt 0:01:20]} 13. Qf3 {[%emt 0:01:36]} Nxe4 {[%emt 0:00:46]} 14. Bxe4 {[%emt 0:00:22]} Ba6 {[%emt 0:02:43]} 15. Bxc6 {[%emt 0:01:01]} Rac8 {[%emt 0:00:22]} 16. Rc1 {[%emt 0:15:02]} Qxc6 {[%emt 0:01:19]} 17. Qxc6 {[%emt 0:00:22]} Rxc6 {[%emt 0:00:07]} 18. Bxa7 {[%emt 0:00:58]} Bh6 {[%emt 0:00:43]} 19. Be3 {[%emt 0:00:59]} Bxe3 {[%emt 0:00:06]} 20. fxe3 {[%emt 0:00:20]} Rb8 {[%emt 0:00:12]} 21. b4 {[%emt 0:00:42]} Rxb4 {[%emt 0:00:09]} 22. a5 {[%emt 0:00:57]} Rb2 {[%emt 0:00:29]} 23. g3 {[%emt 0:02:07]} Re2+ {[%emt 0:00:18]} 24. Kf1 {[%emt 0:00:32]} Rc2+ {[%emt 0:00:21]} 25. Kg1 {[%emt 0:00:20]} Rxc1+ {[%emt 0:00:08]} 26. Kg2 {[%emt 0:00:13]} R6xc3 {[%emt 0:00:10]} 27. Rxc1 {[%emt 0:01:08]} Rxc1 {[%emt 0:00:08]} 28. e4 {[%emt 0:00:28]} Rf1 {[%emt 0:00:13]} 29. e5 {[%emt 0:00:14]} f5 {[%emt 0:00:11]} 30. g4 {[%emt 0:00:26]} f4 {[%emt 0:00:12]} 31. g5 {[%emt 0:00:14]} f3+ {[%emt 0:00:11]} 32. Kg3 {[%emt 0:00:11]} f2 {[%emt 0:00:07]} 33. h4 {[%emt 0:00:09]} Kf8 {[%emt 0:00:17]} 34. h5 {[%emt 0:00:11]} Rg1+ {[%emt 0:00:09]} 35. Kxf2 {[%emt 0:00:17]} Rxg5 {[%emt 0:00:08]} 36. h6 {[%emt 0:00:18]} Rg4 {[%emt 0:00:16]} 37. Ke1 {[%emt 0:00:22]} Rg2 {[%emt 0:00:06]} 38. Kd1 {[%emt 0:00:10]} Ke7 {[%emt 0:00:14]} 39. Kc1 {[%emt 0:00:16]} Kd7 {[%emt 0:00:07]} 40. Kb1 {[%emt 0:00:13]} Kc6 {[%emt 0:00:09]} 41. Ka1 {[%emt 0:15:18]} Kb5 {[%emt 0:15:12]} 42. Kb1 {[%emt 0:00:17]} Kc4 {[%emt 0:00:11]} 43. Kc1 {[%emt 0:00:16]} Kc3 {[%emt 0:00:12]} 44. Kb1 {[%emt 0:00:20]} g5 {[%emt 0:00:16]} 45. Ka1 {[%emt 0:00:11]} Kb3 {[%emt 0:00:05]} 46. Kb1 {[%emt 0:00:11]} Rg1# {[%emt 0:00:06]} 0-1

[Event "GER-ch Youth-U10 2022"]
[Site "Willingen"]
[Date "2022.06.05"]
[Round "2.25"]
[White "Meurer, Knut"]
[Black "Wagener, Nicolas"]
[Result "0-1"]
[ECO "D38"]
[WhiteElo "998"]
[BlackElo "1315"]
[Annotator "NA RC COMBH"]
[PlyCount "98"]
[EventDate "2022.06.05"]
[EventType "swiss"]
[EventRounds "11"]
[EventCountry "GER"]
[SourceTitle "playchess.com"]
[Source "ChessBase"]
[SourceQuality "1"]
[TimeControl "40/4500+30:900+30"]

1. d4 {[%emt 0:00:03]} d5 {[%emt 0:00:07]} 2. c4 {[%emt 0:00:04]} e6 {[%emt 0:00:05]} 3. Nc3 {[%emt 0:00:07]} Bb4 {[%emt 0:00:09]} 4. Nf3 {[%emt 0:00:27]} Nf6 {[%emt 0:00:07]} 5. Bg5 {[%emt 0:00:06]} h6 {[%emt 0:00:30]} 6. Bxf6 {[%emt 0:00:10]} Qxf6 {[%emt 0:00:06]} 7. e3 {[%emt 0:00:15]} O-O {[%emt 0:00:30]} 8. Bd3 {[%emt 0:00:07]} c5 {[%emt 0:00:25]} 9. cxd5 {[%emt 0:00:44]} exd5 {[%emt 0:00:21]} 10. a3 {[%emt 0:00:04]} Bxc3+ {[%emt 0:00:49]} 11. bxc3 {[%emt 0:00:25]} Bg4 {[%emt 0:00:12]} 12. O-O {[%emt 0:00:09]} Bxf3 {[%emt 0:00:27]} 13. Qxf3 {[%emt 0:01:05]} Qxf3 {[%emt 0:00:13]} 14. gxf3 {[%emt 0:00:04]} c4 {[%emt 0:00:09]} 15. Bf5 {[%emt 0:00:22]} Nc6 {[%emt 0:00:28]} 16. Bd7 {[%emt 0:00:24]} Rfd8 {[%emt 0:00:38]} 17. Bxc6 {[%emt 0:00:43]} bxc6 {[%emt 0:00:07]} 18. e4 {[%emt 0:00:10]} dxe4 {[%emt 0:00:17]} 19. fxe4 {[%emt 0:00:10]} Re8 {[%emt 0:00:06]} 20. e5 {[%emt 0:00:16]} c5 {[%emt 0:00:15]} 21. Rac1 {[%emt 0:00:32]} Rad8 {[%emt 0:00:52]} 22. Rfe1 {[%emt 0:00:41]} cxd4 {[%emt 0:00:36]} 23. Re4 {[%emt 0:00:52]} d3 {[%emt 0:01:00]} 24. Rxc4 {[%emt 0:00:34]} d2 {[%emt 0:00:08]} 25. Rd1 {[%emt 0:00:11]} Rxe5 {[%emt 0:00:08]} 26. Kf1 {[%emt 0:00:44]} Rh5 {[%emt 0:07:21]} 27. Kg1 {[%emt 0:00:15]} Ra5 {[%emt 0:01:08]} 28. a4 {[%emt 0:01:09]} Re5 {[%emt 0:00:31]} 29. Kf1 {[%emt 0:03:07]} Rdd5 {[%emt 0:01:12]} 30. Rc8+ {[%emt 0:00:23]} Kh7 {[%emt 0:00:06]} 31. Rc7 {[%emt 0:00:46]} Rh5 {[%emt 0:00:43]} 32. Ke2 {[%emt 0:00:31]} Rxh2 {[%emt 0:00:33]} 33. Rxd2 {[%emt 0:00:23]} Rxd2+ {[%emt 0:00:13]} 34. Kxd2 {[%emt 0:00:06]} Rxf2+ {[%emt 0:00:07]} 35. Ke3 {[%emt 0:00:14]} Rc2 {[%emt 0:01:41]} 36. Kd3 {[%emt 0:00:13]} Ra2 {[%emt 0:00:53]} 37. Rxa7 {[%emt 0:00:05]} h5 {[%emt 0:00:39]} 38. Rxf7 {[%emt 0:00:12]} Rxa4 {[%emt 0:00:12]} 39. Rf3 {[%emt 0:00:17]} h4 {[%emt 0:01:26]} 40. c4 {[%emt 0:00:33]} Ra3+ {[%emt 0:00:05]} 41. Ke4 {[%emt 0:15:14]} Rxf3 {[%emt 0:16:05]} 42. Kxf3 {[%emt 0:00:08]} Kg8 {[%emt 0:00:10]} 43. c5 {[%emt 0:00:10]} Kf7 {[%emt 0:00:05]} 44. Kg4 {[%emt 0:00:13]} g5 {[%emt 0:00:08]} 45. Kxg5 {[%emt 0:00:09]} h3 {[%emt 0:00:08]} 46. c6 {[%emt 0:00:07]} Ke6 {[%emt 0:00:12]} 47. Kg4 {[%emt 0:00:31]} h2 {[%emt 0:00:08]} 48. c7 {[%emt 0:00:10]} Kd7 {[%emt 0:00:05]} 49. Kg3 {[%emt 0:00:45]} h1=Q {[%emt 0:00:10]} 0-1

[Event "GER-ch Youth-U10 2022"]
[Site "Willingen"]
[Date "2022.06.05"]
[Round "2.26"]
[White "Wetzig, Karl Anton"]
[Black "Rinke, Alexander"]
[Result "0-1"]
[ECO "B10"]
[WhiteElo "884"]
[BlackElo "1292"]
[Annotator "NA RC COMBH"]
[PlyCount "87"]
[EventDate "2022.06.05"]
[EventType "swiss"]
[EventRounds "11"]
[EventCountry "GER"]
[SourceTitle "playchess.com"]
[Source "ChessBase"]
[SourceQuality "1"]
[TimeControl "40/4500+30:900+30"]

1. e4 {[%emt 0:00:07]} c6 {[%emt 0:00:04]} 2. Nf3 {[%emt 0:00:50]} d5 {[%emt 0:00:32]} 3. d3 {[%emt 0:00:43]} Bg4 {[%emt 0:01:21]} 4. g3 {[%emt 0:00:38]} dxe4 {[%emt 0:00:54]} 5. Be2 {[%emt 0:01:11]} exf3 {[%emt 0:01:14]} 6. Bxf3 {[%emt 0:00:07]} Bxf3 {[%emt 0:00:52]} 7. Qxf3 {[%emt 0:00:16]} Nf6 {[%emt 0:00:16]} 8. Bf4 {[%emt 0:02:10]} e6 {[%emt 0:01:03]} 9. Nc3 {[%emt 0:00:57]} Be7 {[%emt 0:00:19]} 10. O-O {[%emt 0:00:17]} O-O {[%emt 0:00:35]} 11. Rad1 {[%emt 0:03:00]} Nd5 {[%emt 0:00:20]} 12. Nxd5 {[%emt 0:00:27]} Qxd5 {[%emt 0:01:07]} 13. Qxd5 {[%emt 0:00:13]} cxd5 {[%emt 0:00:08]} 14. Rfe1 {[%emt 0:01:32]} Nc6 {[%emt 0:01:03]} 15. c3 {[%emt 0:00:34]} Rac8 {[%emt 0:02:59]} 16. d4 {[%emt 0:02:20]} Na5 {[%emt 0:00:52]} 17. b3 {[%emt 0:00:22]} Rxc3 {[%emt 0:00:11]} 18. Bd2 {[%emt 0:00:26]} Rc2 {[%emt 0:02:58]} 19. Bxa5 {[%emt 0:00:44]} Rxa2 {[%emt 0:00:22]} 20. Ra1 {[%emt 0:01:19]} Rxa5 {[%emt 0:00:47]} 21. Rxa5 {[%emt 0:00:50]} Bb4 {[%emt 0:00:03]} 22. Rea1 {[%emt 0:04:12]} Bxa5 {[%emt 0:00:36]} 23. Rxa5 {[%emt 0:00:27]} a6 {[%emt 0:00:02]} 24. b4 {[%emt 0:00:56]} Rc8 {[%emt 0:00:14]} 25. b5 {[%emt 0:00:32]} axb5 {[%emt 0:02:48]} 26. Rxb5 {[%emt 0:00:00]} Rc7 {[%emt 0:00:12]} 27. Ra5 {[%emt 0:00:12]} Kf8 {[%emt 0:00:26]} 28. Kf1 {[%emt 0:00:38]} Ke7 {[%emt 0:01:56]} 29. Ke2 {[%emt 0:00:19]} Rc4 {[%emt 0:01:14]} 30. Kd3 {[%emt 0:02:50]} Kd6 {[%emt 0:00:29]} 31. Ra8 {[%emt 0:03:05]} b5 {[%emt 0:02:48]} 32. Ra1 {[%emt 0:02:23]} Kc6 {[%emt 0:00:35]} 33. Ra6+ {[%emt 0:02:08]} Kb7 {[%emt 0:02:15]} 34. Ra2 {[%emt 0:02:35]} b4 {[%emt 0:01:00]} 35. Rb2 {[%emt 0:04:19]} Kb6 {[%emt 0:00:34]} 36. Ra2 {[%emt 0:01:10]} Rc3+ {[%emt 0:01:34]} 37. Kd2 {[%emt 0:00:31]} Ra3 {[%emt 0:00:24]} 38. Rb2 {[%emt 0:00:37]} Kb5 {[%emt 0:00:07]} 39. Kc2 {[%emt 0:00:09]} Kc4 {[%emt 0:00:09]} 40. h4 {[%emt 0:05:13]} b3+ {[%emt 0:00:56]} 41. Kd2 {[%emt 0:00:55]} Ra2 {[%emt 0:00:03]} 42. Rxa2 {[%emt 0:00:55]} bxa2 {[%emt 0:00:07]} 43. g4 {[%emt 0:00:16]} a1=Q {[%emt 0:00:04]} 44. Ke3 {[%emt 0:17:13]} 0-1

[Event "GER-ch Youth-U10 2022"]
[Site "Willingen"]
[Date "2022.06.06"]
[Round "3.2"]
[White "Rau, Eduard"]
[Black "Kateryniuk, Ivan"]
[Result "0-1"]
[ECO "C42"]
[WhiteElo "1406"]
[BlackElo "1187"]
[Annotator "NA RC COMBH"]
[PlyCount "136"]
[EventDate "2022.06.05"]
[EventType "swiss"]
[EventRounds "11"]
[EventCountry "GER"]
[SourceTitle "playchess.com"]
[Source "ChessBase"]
[SourceQuality "1"]
[TimeControl "40/4500+30:900+30"]

1. e4 {[%emt 0:00:02]} e5 {[%emt 0:00:01]} 2. Nf3 {[%emt 0:00:06]} Nf6 {[%emt 0:00:12]} 3. Nc3 {[%emt 0:00:03]} Bb4 {[%emt 0:00:06]} 4. Nxe5 {[%emt 0:00:06]} O-O {[%emt 0:00:10]} 5. Nd3 {[%emt 0:00:04]} Bxc3 {[%emt 0:00:10]} 6. dxc3 {[%emt 0:00:04]} Nxe4 {[%emt 0:04:40]} 7. Be2 {[%emt 0:00:52]} d5 {[%emt 0:01:59]} 8. O-O {[%emt 0:00:17]} Bf5 {[%emt 0:05:02]} 9. Bf4 {[%emt 0:01:11]} c6 {[%emt 0:08:21]} 10. f3 {[%emt 0:01:11]} Nf6 {[%emt 0:00:23]} 11. Nc5 {[%emt 0:00:20]} Re8 {[%emt 0:01:13]} 12. Re1 {[%emt 0:02:15]} Nbd7 {[%emt 0:01:05]} 13. Nxb7 {[%emt 0:00:46]} Qb6+ {[%emt 0:00:09]} 14. Kh1 {[%emt 0:01:01]} Qxb7 {[%emt 0:00:12]} 15. g4 {[%emt 0:00:25]} Bg6 {[%emt 0:02:04]} 16. b3 {[%emt 0:01:17]} Qb6 {[%emt 0:07:48]} 17. c4 {[%emt 0:01:27]} Rad8 {[%emt 0:02:39]} 18. Qd2 {[%emt 0:07:22]} Nxg4 {[%emt 0:01:42]} 19. cxd5 {[%emt 0:04:15]} Bf5 {[%emt 0:08:58]} 20. Bc4 {[%emt 0:01:09]} Nf2+ {[%emt 0:00:49]} 21. Kg2 {[%emt 0:00:06]} Bh3+ {[%emt 0:02:08]} 22. Kg3 {[%emt 0:00:15]} cxd5 {[%emt 0:03:10]} 23. Be3 {[%emt 0:02:12]} Qg6+ {[%emt 0:01:04]} 24. Bg5 {[%emt 0:02:36]} dxc4 {[%emt 0:06:21]} 25. Kxf2 {[%emt 0:00:55]} Ne5 {[%emt 0:01:41]} 26. Qxd8 {[%emt 0:06:46]} Rxd8 {[%emt 0:02:22]} 27. Bxd8 {[%emt 0:00:47]} Qg2+ {[%emt 0:04:29]} 28. Ke3 {[%emt 0:00:12]} Qxf3+ {[%emt 0:00:40]} 29. Kd4 {[%emt 0:00:16]} Nc6+ {[%emt 0:00:10]} 30. Kc5 {[%emt 0:00:20]} h6 {[%emt 0:01:49]} 31. Bc7 {[%emt 0:01:08]} cxb3 {[%emt 0:01:56]} 32. cxb3 {[%emt 0:02:54]} Bg2 {[%emt 0:00:17]} 33. Rad1 {[%emt 0:00:29]} Qc3+ {[%emt 0:02:28]} 34. Kd6 {[%emt 0:01:07]} Nd4 {[%emt 0:01:52]} 35. Bb8 {[%emt 0:03:36]} Qc6+ {[%emt 0:00:14]} 36. Ke7 {[%emt 0:00:23]} Qb7+ {[%emt 0:00:51]} 37. Kd6 {[%emt 0:00:22]} Nb5+ {[%emt 0:00:17]} 38. Kc5 {[%emt 0:00:38]} Qxb8 {[%emt 0:00:10]} 39. Rd2 {[%emt 0:00:43]} Qb6+ {[%emt 0:01:26]} 40. Kc4 {[%emt 0:01:03]} Na3+ {[%emt 0:00:41]} 41. Kc3 {[%emt 0:15:55]} Qc5+ {[%emt 0:15:35]} 42. Kb2 {[%emt 0:00:27]} Nb5 {[%emt 0:00:22]} 43. Rc2 {[%emt 0:01:49]} Qd4+ {[%emt 0:00:49]} 44. Kc1 {[%emt 0:00:21]} Be4 {[%emt 0:00:14]} 45. Rc4 {[%emt 0:01:03]} Qa1+ {[%emt 0:00:44]} 46. Kd2 {[%emt 0:00:05]} Qxa2+ {[%emt 0:00:13]} 47. Kc1 {[%emt 0:01:26]} Qb1+ {[%emt 0:00:13]} 48. Kd2 {[%emt 0:00:06]} Qd3+ {[%emt 0:00:05]} 49. Kc1 {[%emt 0:00:06]} Nc3 {[%emt 0:00:41]} 50. Rexe4 {[%emt 0:02:08]} Qb1+ {[%emt 0:00:20]} 51. Kd2 {[%emt 0:00:06]} Nxe4+ {[%emt 0:00:05]} 52. Ke3 {[%emt 0:00:05]} Qxb3+ {[%emt 0:00:13]} 53. Kd4 {[%emt 0:00:05]} Qxc4+ {[%emt 0:00:09]} 54. Kxc4 {[%emt 0:00:15]} f5 {[%emt 0:00:04]} 55. h4 {[%emt 0:00:04]} f4 {[%emt 0:00:04]} 56. Kd4 {[%emt 0:00:03]} a5 {[%emt 0:00:13]} 57. Kxe4 {[%emt 0:00:04]} a4 {[%emt 0:00:06]} 58. h5 {[%emt 0:00:01]} a3 {[%emt 0:00:06]} 59. Kxf4 {[%emt 0:00:03]} a2 {[%emt 0:00:06]} 60. Kf5 {[%emt 0:00:02]} a1=Q {[%emt 0:00:13]} 61. Ke4 {[%emt 0:00:08]} Qc3 {[%emt 0:00:10]} 62. Kf5 {[%emt 0:00:04]} Qe3 {[%emt 0:00:19]} 63. Kg4 {[%emt 0:00:04]} Qf2 {[%emt 0:00:10]} 64. Kh3 {[%emt 0:00:03]} Qg1 {[%emt 0:00:21]} 65. Kh4 {[%emt 0:00:03]} Kf7 {[%emt 0:00:08]} 66. Kh3 {[%emt 0:00:03]} Kf6 {[%emt 0:00:08]} 67. Kh4 {[%emt 0:00:01]} Kf5 {[%emt 0:00:11]} 68. Kh3 {[%emt 0:00:04]} Ke5 {[%emt 0:00:14]} 0-1

[Event "GER-ch Youth-U10 2022"]
[Site "Willingen"]
[Date "2022.06.06"]
[Round "3.4"]
[White "Allen, Phillipp"]
[Black "Zhang, Yibo"]
[Result "0-1"]
[ECO "C90"]
[WhiteElo "1467"]
[BlackElo "1436"]
[Annotator "NA RC COMBH"]
[PlyCount "91"]
[EventDate "2022.06.05"]
[EventType "swiss"]
[EventRounds "11"]
[EventCountry "GER"]
[SourceTitle "playchess.com"]
[Source "ChessBase"]
[SourceQuality "1"]
[TimeControl "40/4500+30:900+30"]

1. e4 {[%emt 0:00:01]} e5 {[%emt 0:00:06]} 2. Nf3 {[%emt 0:00:05]} Nc6 {[%emt 0:00:07]} 3. Bb5 {[%emt 0:00:05]} a6 {[%emt 0:00:08]} 4. Ba4 {[%emt 0:00:05]} Nf6 {[%emt 0:00:08]} 5. d3 {[%emt 0:00:14]} b5 {[%emt 0:02:18]} 6. Bb3 {[%emt 0:00:09]} Be7 {[%emt 0:00:06]} 7. O-O {[%emt 0:00:32]} d6 {[%emt 0:00:17]} 8. c3 {[%emt 0:00:08]} O-O {[%emt 0:00:21]} 9. Re1 {[%emt 0:00:07]} Na5 {[%emt 0:00:40]} 10. Bc2 {[%emt 0:00:10]} c5 {[%emt 0:00:13]} 11. Nbd2 {[%emt 0:00:23]} Nc6 {[%emt 0:00:24]} 12. Nf1 {[%emt 0:00:16]} Qc7 {[%emt 0:00:23]} 13. Ng3 {[%emt 0:02:52]} Rd8 {[%emt 0:01:07]} 14. Bb3 {[%emt 0:01:42]} h6 {[%emt 0:04:14]} 15. Be3 {[%emt 0:02:03]} Be6 {[%emt 0:02:32]} 16. d4 {[%emt 0:03:03]} Bxb3 {[%emt 0:01:12]} 17. Qxb3 {[%emt 0:00:56]} Na5 {[%emt 0:02:12]} 18. Qd1 {[%emt 0:01:17]} Nc4 {[%emt 0:04:36]} 19. Qc1 {[%emt 0:07:54]} Rac8 {[%emt 0:11:56]} 20. d5 {[%emt 0:01:46]} b4 {[%emt 0:04:22]} 21. b3 {[%emt 0:05:15]} Nxe3 {[%emt 0:01:24]} 22. Qxe3 {[%emt 0:00:16]} bxc3 {[%emt 0:02:57]} 23. Qxc3 {[%emt 0:00:51]} g6 {[%emt 0:00:42]} 24. Nd2 {[%emt 0:02:17]} Ra8 {[%emt 0:00:47]} 25. Nc4 {[%emt 0:02:37]} a5 {[%emt 0:00:43]} 26. a4 {[%emt 0:00:15]} Rdb8 {[%emt 0:00:37]} 27. Na3 {[%emt 0:00:34]} Qd7 {[%emt 0:01:22]} 28. Nb5 {[%emt 0:02:21]} h5 {[%emt 0:01:22]} 29. f3 {[%emt 0:08:31]} h4 {[%emt 0:04:12]} 30. Ne2 {[%emt 0:01:01]} g5 {[%emt 0:01:52]} 31. Qd2 {[%emt 0:02:13]} Nh5 {[%emt 0:01:33]} 32. g4 {[%emt 0:00:55]} hxg3 {[%emt 0:00:57]} 33. Nxg3 {[%emt 0:00:19]} Nxg3 {[%emt 0:00:49]} 34. hxg3 {[%emt 0:00:09]} Kg7 {[%emt 0:01:47]} 35. g4 {[%emt 0:01:01]} Rh8 {[%emt 0:00:24]} 36. Kg2 {[%emt 0:00:14]} Rh4 {[%emt 0:01:34]} 37. Qe2 {[%emt 0:00:59]} Rah8 {[%emt 0:01:06]} 38. Rh1 {[%emt 0:00:08]} Bd8 {[%emt 0:01:29]} 39. Raf1 {[%emt 0:02:49]} Qe7 {[%emt 0:01:10]} 40. Qe3 {[%emt 0:02:16]} Qf6 {[%emt 0:00:45]} 41. Qc1 {[%emt 0:16:02]} Be7 {[%emt 0:15:52]} 42. Na7 {[%emt 0:04:48]} Bd8 {[%emt 0:04:49]} 43. Nc6 {[%emt 0:01:24]} Bb6 {[%emt 0:00:41]} 44. Qe3 {[%emt 0:00:41]} Qh6 {[%emt 0:01:04]} 45. Qc1 {[%emt 0:00:29]} Qf6 {[%emt 0:02:48]} 46. Rd1 {[%emt 0:00:09]} 0-1